[Event "*** Titled Tuesday Blitz"]
[Site "Chess.com"]
[Date "2019.11.05"]
[Round "6"]
[White "LPSupi"]
[Black "NTBT_DHS"]
[Result "1-0"]
[WhiteElo "2982"]
[BlackElo "2661"]
[TimeControl "180+2"]
[EndTime "14:20:46 PST"]
[Termination "LPSupi won by resignation"]

1. e4 {[%clk 0:02:57]} 1... g6 {[%clk 0:03:00.6]} 2. d4 {[%clk 0:02:57.7]} 2...
Bg7 {[%clk 0:03:02]} 3. Nc3 {[%clk 0:02:59.1]} 3... a6 {[%clk 0:03:03.3]} 4. a4
{[%clk 0:02:59]} 4... b6 {[%clk 0:03:04]} 5. f4 {[%clk 0:02:58.4]} 5... d5
{[%clk 0:03:05.2]} 6. e5 {[%clk 0:02:53.7]} 6... Nh6 {[%clk 0:03:04.7]} 7. Be2
{[%clk 0:02:53]} 7... Nc6 {[%clk 0:02:56]} 8. Bf3 {[%clk 0:02:50.7]} 8... Be6
{[%clk 0:02:52.8]} 9. Nge2 {[%clk 0:02:50]} 9... O-O {[%clk 0:02:41.5]} 10. O-O
{[%clk 0:02:40.6]} 10... Nb4 {[%clk 0:02:34.2]} 11. a5 {[%clk 0:02:32.8]} 11...
c5 {[%clk 0:02:28.6]} 12. axb6 {[%clk 0:02:33.1]} 12... Qxb6 {[%clk 0:02:28.9]}
13. Na4 {[%clk 0:02:33.5]} 13... Qc7 {[%clk 0:02:20.4]} 14. Nxc5 {[%clk
0:02:32.8]} 14... Bf5 {[%clk 0:02:21.4]} 15. c3 {[%clk 0:02:31.8]} 15... Nc6
{[%clk 0:02:09.5]} 16. Bxd5 {[%clk 0:02:31]} 16... Rfd8 {[%clk 0:02:10.1]} 17.
Bf3 {[%clk 0:02:30.6]} 17... a5 {[%clk 0:02:01.2]} 18. Ng3 {[%clk 0:02:26.1]}
18... Rac8 {[%clk 0:01:52.6]} 19. Be3 {[%clk 0:02:23.8]} 19... Qb6 {[%clk
0:01:39.4]} 20. Qe2 {[%clk 0:02:24]} 20... e6 {[%clk 0:01:33.9]} 21. Kh1 {[%clk
0:02:21.5]} 21... Rb8 {[%clk 0:01:27.8]} 22. Rf2 {[%clk 0:02:21.8]} 22... Ne7
{[%clk 0:01:25.7]} 23. Qa6 {[%clk 0:02:05]} 23... Qc7 {[%clk 0:01:21.5]} 24.
Qxa5 {[%clk 0:02:00]} 24... Qc8 {[%clk 0:01:22.7]} 25. Qa6 {[%clk 0:01:57.7]}
25... Qc7 {[%clk 0:01:23.2]} 26. Qa7 {[%clk 0:01:58.9]} 26... Qxa7 {[%clk
0:01:19.6]} 27. Rxa7 {[%clk 0:01:59.3]} 27... Nd5 {[%clk 0:01:21.5]} 28. Bxd5
{[%clk 0:02:00.4]} 28... Ng4 {[%clk 0:01:22]} 29. Re2 {[%clk 0:01:58.4]} 29...
Nxe3 {[%clk 0:01:16]} 30. Rxe3 {[%clk 0:01:58.4]} 30... Rxd5 {[%clk 0:01:15.9]}
31. Nxf5 {[%clk 0:01:56.5]} 31... Rxb2 {[%clk 0:01:11.6]} 32. Ne7+ {[%clk
0:01:53.9]} 32... Kf8 {[%clk 0:01:10.8]} 33. g3 {[%clk 0:01:49.3]} 33... Rd8
{[%clk 0:01:11]} 34. Re1 {[%clk 0:01:46.4]} 34... Ke8 {[%clk 0:01:06.1]} 35. Nc6
{[%clk 0:01:45.7]} 35... Rc8 {[%clk 0:01:06]} 36. Nb4 {[%clk 0:01:45.7]} 36...
Bf8 {[%clk 0:01:06.7]} 37. Ne4 {[%clk 0:01:45.8]} 37... Bxb4 {[%clk 0:01:00.4]}
38. cxb4 {[%clk 0:01:46.5]} 38... Rcc2 {[%clk 0:01:02.3]} 39. Rea1 {[%clk
0:00:49.5]} 39... Kf8 {[%clk 0:01:02.5]} 40. g4 {[%clk 0:00:29.3]} 40... h5
{[%clk 0:00:53.4]} 41. gxh5 {[%clk 0:00:27.3]} 41... gxh5 {[%clk 0:00:54]} 42.
Ra8+ {[%clk 0:00:27.4]} 42... Kg7 {[%clk 0:00:43.4]} 43. Rg1+ {[%clk 0:00:28.2]}
1-0

[Event "*** Titled Tuesday Blitz"]
[Site "Chess.com"]
[Date "2019.11.05"]
[Round "6"]
[White "gemarin"]
[Black "yjjga"]
[Result "1-0"]
[WhiteElo "2130"]
[BlackElo "2034"]
[TimeControl "180+2"]
[EndTime "14:20:49 PST"]
[Termination "gemarin won by resignation"]

1. d4 {[%clk 0:03:00.5]} 1... d5 {[%clk 0:03:00.7]} 2. c4 {[%clk 0:03:00.9]}
2... c6 {[%clk 0:03:01.6]} 3. Nc3 {[%clk 0:03:02.1]} 3... Nf6 {[%clk 0:03:03]}
4. Nf3 {[%clk 0:03:03]} 4... dxc4 {[%clk 0:03:04.6]} 5. a4 {[%clk 0:03:01.9]}
5... Bf5 {[%clk 0:03:05.4]} 6. e3 {[%clk 0:03:02]} 6... e6 {[%clk 0:03:06.9]} 7.
Bxc4 {[%clk 0:03:02.6]} 7... Bb4 {[%clk 0:03:08.4]} 8. O-O {[%clk 0:03:03.2]}
8... O-O {[%clk 0:03:08.5]} 9. Qe2 {[%clk 0:03:04]} 9... Bg6 {[%clk 0:03:09.6]}
10. Ne5 {[%clk 0:03:02.6]} 10... Nbd7 {[%clk 0:03:08.7]} 11. Nxg6 {[%clk
0:03:03.2]} 11... hxg6 {[%clk 0:03:10.4]} 12. Rd1 {[%clk 0:03:01]} 12... Qe7
{[%clk 0:03:10.5]} 13. e4 {[%clk 0:02:58.6]} 13... e5 {[%clk 0:03:05.9]} 14. d5
{[%clk 0:02:58.3]} 14... Bxc3 {[%clk 0:03:06.6]} 15. bxc3 {[%clk 0:02:58.1]}
15... cxd5 {[%clk 0:02:40.3]} 16. Ba3 {[%clk 0:02:47.9]} 16... Nc5 {[%clk
0:02:37.4]} 17. Bxd5 {[%clk 0:02:48.7]} 17... Rac8 {[%clk 0:02:35.4]} 18. a5
{[%clk 0:02:37.9]} 18... Rfd8 {[%clk 0:02:16.8]} 19. Rab1 {[%clk 0:02:34.2]}
19... Rd7 {[%clk 0:01:08.1]} 20. Qb5 {[%clk 0:02:21.5]} 20... a6 {[%clk
0:00:22.5]} 21. Qb6 {[%clk 0:02:04.9]} 21... Nxd5 {[%clk 0:00:19.1]} 22. Rxd5
{[%clk 0:02:00.7]} 22... Rxd5 {[%clk 0:00:14.5]} 23. exd5 {[%clk 0:02:01.2]}
23... Qc7 {[%clk 0:00:15.2]} 24. d6 {[%clk 0:01:52.8]} 24... Qxb6 {[%clk
0:00:15]} 25. Rxb6 {[%clk 0:01:53.1]} 25... Nd7 {[%clk 0:00:15.6]} 26. Rxb7
{[%clk 0:01:53.5]} 26... Rxc3 {[%clk 0:00:14.6]} 27. Rxd7 {[%clk 0:01:51.4]}
27... Rxa3 {[%clk 0:00:14.9]} 28. g3 {[%clk 0:01:52.7]} 28... Rxa5 {[%clk
0:00:14.6]} 29. Rd8+ {[%clk 0:01:53.3]} 29... Kh7 {[%clk 0:00:15.8]} 30. Rf8
{[%clk 0:01:53.6]} 30... Rd5 {[%clk 0:00:15.9]} 31. Rxf7 {[%clk 0:01:54.6]}
31... Rxd6 {[%clk 0:00:17.5]} 32. Re7 {[%clk 0:01:55.9]} 32... g5 {[%clk
0:00:18.6]} 33. Rxe5 {[%clk 0:01:56.3]} 33... Kg6 {[%clk 0:00:20.5]} 34. Kg2
{[%clk 0:01:56.3]} 34... Rb6 {[%clk 0:00:22]} 35. h3 {[%clk 0:01:55.7]} 35...
Rc6 {[%clk 0:00:23]} 36. Kf3 {[%clk 0:01:56.5]} 36... Kf6 {[%clk 0:00:23.7]} 37.
Ra5 {[%clk 0:01:56.2]} 37... Rb6 {[%clk 0:00:25.1]} 38. Kg4 {[%clk 0:01:56.6]}
38... Rb4+ {[%clk 0:00:26.1]} 39. Kh5 {[%clk 0:01:52.1]} 39... g6+ {[%clk
0:00:15.6]} 40. Kh6 {[%clk 0:01:52.6]} 40... Rb2 {[%clk 0:00:12]} 41. Rxa6+
{[%clk 0:01:49.2]} 41... Kf5 {[%clk 0:00:12.1]} 42. Rxg6 {[%clk 0:01:48.9]}
42... Rxf2 {[%clk 0:00:12.3]} 43. Rxg5+ {[%clk 0:01:49.9]} 43... Kf6 {[%clk
0:00:12.7]} 44. h4 {[%clk 0:01:50.8]} 44... Rh2 {[%clk 0:00:10.6]} 45. h5 {[%clk
0:01:51.5]} 45... Rh3 {[%clk 0:00:10.5]} 46. g4 {[%clk 0:01:52.2]} 46... Kf7
{[%clk 0:00:11.9]} 47. Rf5+ {[%clk 0:01:51.5]} 47... Kg8 {[%clk 0:00:12.1]} 48.
g5 {[%clk 0:01:52.7]} 48... Rb3 {[%clk 0:00:12.3]} 49. g6 {[%clk 0:01:53.3]}
49... Rb1 {[%clk 0:00:12.8]} 50. Rc5 {[%clk 0:01:53.6]} 50... Kf8 {[%clk
0:00:12.6]} 51. g7+ {[%clk 0:01:50.2]} 51... Kf7 {[%clk 0:00:12.9]} 52. Rc7+
{[%clk 0:01:50.7]} 52... Kg8 {[%clk 0:00:13.8]} 53. Rc8+ {[%clk 0:01:51]} 53...
Kf7 {[%clk 0:00:13.9]} 54. g8=Q+ {[%clk 0:01:51.4]} 54... Ke7 {[%clk 0:00:15.8]}
1-0

[Event "*** Titled Tuesday Blitz"]
[Site "Chess.com"]
[Date "2019.11.05"]
[Round "6"]
[White "Darhild"]
[Black "misha_chessone"]
[Result "1-0"]
[WhiteElo "2691"]
[BlackElo "2466"]
[TimeControl "180+2"]
[EndTime "14:20:53 PST"]
[Termination "Darhild won by resignation"]

1. e4 {[%clk 0:03:01.9]} 1... e6 {[%clk 0:03:00.7]} 2. d4 {[%clk 0:02:59.2]}
2... d5 {[%clk 0:03:01.7]} 3. Nc3 {[%clk 0:03:00.6]} 3... Bb4 {[%clk 0:03:01.6]}
4. Ne2 {[%clk 0:03:00.4]} 4... dxe4 {[%clk 0:03:01.9]} 5. a3 {[%clk 0:03:01]}
5... Bxc3+ {[%clk 0:03:02.6]} 6. Nxc3 {[%clk 0:03:02.9]} 6... Nc6 {[%clk
0:03:03.4]} 7. Be3 {[%clk 0:03:02.3]} 7... Nf6 {[%clk 0:02:52.8]} 8. Qd2 {[%clk
0:03:03.2]} 8... O-O {[%clk 0:02:52.7]} 9. O-O-O {[%clk 0:03:04.6]} 9... Nd5
{[%clk 0:02:40.2]} 10. Nxe4 {[%clk 0:02:58.9]} 10... Nxe3 {[%clk 0:02:40.4]} 11.
Qxe3 {[%clk 0:02:57.7]} 11... Ne7 {[%clk 0:02:35.6]} 12. g4 {[%clk 0:02:45.7]}
12... Bd7 {[%clk 0:02:34.1]} 13. Bd3 {[%clk 0:02:34.2]} 13... Bc6 {[%clk
0:02:30.5]} 14. h4 {[%clk 0:02:22.4]} 14... f5 {[%clk 0:02:11.3]} 15. Ng5 {[%clk
0:01:57.9]} 15... Bxh1 {[%clk 0:01:47.8]} 16. Qxe6+ {[%clk 0:01:19.7]} 16... Kh8
{[%clk 0:01:47.6]} 17. Rxh1 {[%clk 0:01:20.9]} 17... Rf6 {[%clk 0:01:08.4]} 18.
Nf7+ {[%clk 0:00:57]} 18... Rxf7 {[%clk 0:01:09.1]} 19. Qxf7 {[%clk 0:00:58.9]}
19... fxg4 {[%clk 0:00:45.2]} 20. Re1 {[%clk 0:00:57.7]} 20... Ng8 {[%clk
0:00:34.2]} 21. c3 {[%clk 0:00:40.6]} 21... c5 {[%clk 0:00:21.5]} 22. Qf5 {[%clk
0:00:27.1]} 22... Nf6 {[%clk 0:00:21.9]} 23. Qxc5 {[%clk 0:00:22.6]} 23... b6
{[%clk 0:00:19.6]} 24. Qe7 {[%clk 0:00:21.5]} 24... Qd5 {[%clk 0:00:18.6]} 25.
Kb1 {[%clk 0:00:17.7]} 25... Qf3 {[%clk 0:00:18.7]} 26. Be4 {[%clk 0:00:10.9]}
26... Qxf2 {[%clk 0:00:17.1]} 27. Bxa8 {[%clk 0:00:11.1]} 27... g3 {[%clk
0:00:09.5]} 28. Qe8+ {[%clk 0:00:11]} 28... Ng8 {[%clk 0:00:10]} 29. Bd5 {[%clk
0:00:06.5]} 29... Qf5+ {[%clk 0:00:08.9]} 30. Qe4 {[%clk 0:00:07.5]} 1-0

[Event "*** Titled Tuesday Blitz"]
[Site "Chess.com"]
[Date "2019.11.05"]
[Round "6"]
[White "Adham_Fawzy"]
[Black "TST2014"]
[Result "1-0"]
[WhiteElo "2717"]
[BlackElo "2528"]
[TimeControl "180+2"]
[EndTime "14:20:59 PST"]
[Termination "Adham_Fawzy won by resignation"]

1. e4 {[%clk 0:02:59.4]} 1... c5 {[%clk 0:03:00.5]} 2. Nf3 {[%clk 0:03:00.1]}
2... Nc6 {[%clk 0:03:01.7]} 3. d4 {[%clk 0:02:59.1]} 3... cxd4 {[%clk
0:03:02.6]} 4. Nxd4 {[%clk 0:03:01]} 4... Nf6 {[%clk 0:03:04]} 5. Nc3 {[%clk
0:03:01.5]} 5... d6 {[%clk 0:03:05.1]} 6. Bg5 {[%clk 0:03:01.2]} 6... e6 {[%clk
0:03:05.8]} 7. Qd2 {[%clk 0:03:01.4]} 7... a6 {[%clk 0:03:06.9]} 8. f4 {[%clk
0:03:01.4]} 8... h6 {[%clk 0:03:06.9]} 9. Bxf6 {[%clk 0:02:45]} 9... Qxf6 {[%clk
0:03:07.2]} 10. Nf3 {[%clk 0:02:42.4]} 10... Qd8 {[%clk 0:03:01.7]} 11. O-O-O
{[%clk 0:02:43.2]} 11... Be7 {[%clk 0:02:59.7]} 12. Bc4 {[%clk 0:02:42.5]} 12...
Qc7 {[%clk 0:02:58.5]} 13. g4 {[%clk 0:02:35.8]} 13... Bd7 {[%clk 0:02:58.5]}
14. Kb1 {[%clk 0:02:22.9]} 14... O-O-O {[%clk 0:02:57.9]} 15. Rhe1 {[%clk
0:02:22.1]} 15... Kb8 {[%clk 0:02:55.6]} 16. f5 {[%clk 0:02:18.8]} 16... Bc8
{[%clk 0:02:35.7]} 17. Bb3 {[%clk 0:02:12.2]} 17... Bf6 {[%clk 0:02:36.3]} 18.
Re3 {[%clk 0:02:10.5]} 18... Ne5 {[%clk 0:02:36]} 19. h3 {[%clk 0:02:09]} 19...
Nxf3 {[%clk 0:02:11.7]} 20. Rxf3 {[%clk 0:02:10.9]} 20... Be5 {[%clk 0:02:05.7]}
21. Qf2 {[%clk 0:02:07.8]} 21... h5 {[%clk 0:02:03.3]} 22. g5 {[%clk 0:02:02.7]}
22... Qc5 {[%clk 0:02:00.3]} 23. Qh4 {[%clk 0:01:59.9]} 23... g6 {[%clk
0:01:58.7]} 24. a3 {[%clk 0:01:57.6]} 24... Rhe8 {[%clk 0:01:23.5]} 25. Ka2
{[%clk 0:01:54.1]} 25... Re7 {[%clk 0:01:24.3]} 26. Rdd3 {[%clk 0:01:47.4]}
26... Rc7 {[%clk 0:01:24.7]} 27. fxg6 {[%clk 0:01:31.6]} 27... fxg6 {[%clk
0:01:25.2]} 28. Qe1 {[%clk 0:01:29.6]} 28... Qa5 {[%clk 0:01:21.8]} 29. h4
{[%clk 0:01:27.9]} 29... Bxc3 {[%clk 0:01:00.6]} 30. Rxc3 {[%clk 0:01:28.4]}
30... Rxc3 {[%clk 0:01:01.7]} 31. Rxc3 {[%clk 0:01:30.2]} 31... Qe5 {[%clk
0:01:01.5]} 32. Rd3 {[%clk 0:01:27]} 32... d5 {[%clk 0:01:01]} 33. Qb4 {[%clk
0:01:26.4]} 33... Qf4 {[%clk 0:00:53.8]} 34. exd5 {[%clk 0:01:18.5]} 34... Qxb4
{[%clk 0:00:53.6]} 35. axb4 {[%clk 0:01:20.4]} 35... exd5 {[%clk 0:00:51.9]} 36.
Rxd5 {[%clk 0:01:22.2]} 36... Rxd5 {[%clk 0:00:47.6]} 37. Bxd5 {[%clk
0:01:24.1]} 37... Bf5 {[%clk 0:00:49.3]} 38. c4 {[%clk 0:01:23.8]} 38... b6
{[%clk 0:00:49.9]} 39. c5 {[%clk 0:01:23.5]} 39... Kc7 {[%clk 0:00:50.2]} 40.
Kb3 {[%clk 0:01:24.2]} 40... Bb1 {[%clk 0:00:25.2]} 41. Kc3 {[%clk 0:01:23.9]}
41... Bf5 {[%clk 0:00:24.2]} 42. Kd4 {[%clk 0:01:24.1]} 42... a5 {[%clk
0:00:22.7]} 43. bxa5 {[%clk 0:01:23.1]} 43... bxa5 {[%clk 0:00:22.1]} 44. Ke5
{[%clk 0:01:24]} 44... a4 {[%clk 0:00:20.8]} 45. Kf6 {[%clk 0:01:24]} 45... Bc2
{[%clk 0:00:20.1]} 46. Bf7 {[%clk 0:01:23.7]} 46... Kc6 {[%clk 0:00:21.1]} 47.
Bxg6 {[%clk 0:01:24.4]} 47... Bxg6 {[%clk 0:00:21.3]} 48. Kxg6 {[%clk
0:01:26.3]} 48... Kxc5 {[%clk 0:00:23.1]} 49. Kxh5 {[%clk 0:01:27.2]} 49... Kc4
{[%clk 0:00:25]} 50. g6 {[%clk 0:01:28.4]} 50... Kb3 {[%clk 0:00:26.9]} 51. g7
{[%clk 0:01:29.8]} 51... Kxb2 {[%clk 0:00:28.8]} 52. g8=Q {[%clk 0:01:31.1]}
52... a3 {[%clk 0:00:30.7]} 53. Qb8+ {[%clk 0:01:32]} 53... Kc1 {[%clk
0:00:31.2]} 54. Qb3 {[%clk 0:01:32.5]} 54... a2 {[%clk 0:00:31.3]} 55. Qxa2
{[%clk 0:01:34.4]} 1-0

[Event "*** Titled Tuesday Blitz"]
[Site "Chess.com"]
[Date "2019.11.05"]
[Round "6"]
[White "ShahMatKanal"]
[Black "anesar92"]
[Result "0-1"]
[WhiteElo "2524"]
[BlackElo "2692"]
[TimeControl "180+2"]
[EndTime "14:21:02 PST"]
[Termination "anesar92 won on time"]

1. d4 {[%clk 0:03:01.9]} 1... Nf6 {[%clk 0:02:59.3]} 2. c4 {[%clk 0:03:01.4]}
2... Nc6 {[%clk 0:03:00.3]} 3. Nf3 {[%clk 0:02:58.9]} 3... e6 {[%clk 0:03:01.3]}
4. Nc3 {[%clk 0:02:51]} 4... Bb4 {[%clk 0:03:01.4]} 5. Bd2 {[%clk 0:02:27]} 5...
O-O {[%clk 0:03:01.3]} 6. e3 {[%clk 0:02:21.4]} 6... d6 {[%clk 0:03:00]} 7. a3
{[%clk 0:02:14.4]} 7... Bxc3 {[%clk 0:02:58.9]} 8. Bxc3 {[%clk 0:02:16.3]} 8...
Qe7 {[%clk 0:03:00.4]} 9. Qc2 {[%clk 0:02:09.7]} 9... e5 {[%clk 0:03:00.5]} 10.
d5 {[%clk 0:02:10]} 10... Nb8 {[%clk 0:02:59.2]} 11. e4 {[%clk 0:01:52.7]} 11...
a5 {[%clk 0:02:59.5]} 12. b4 {[%clk 0:01:47.6]} 12... axb4 {[%clk 0:02:53.1]}
13. axb4 {[%clk 0:01:48.6]} 13... Rxa1+ {[%clk 0:02:55]} 14. Bxa1 {[%clk
0:01:50.1]} 14... Na6 {[%clk 0:02:56.6]} 15. Bc3 {[%clk 0:01:49.3]} 15... Nh5
{[%clk 0:02:57.2]} 16. Nd2 {[%clk 0:01:30.9]} 16... f5 {[%clk 0:02:54.5]} 17.
exf5 {[%clk 0:01:15.5]} 17... Bxf5 {[%clk 0:02:53.6]} 18. Bd3 {[%clk 0:01:16.7]}
18... e4 {[%clk 0:02:22.2]} 19. Bxe4 {[%clk 0:01:13]} 19... Nf4 {[%clk
0:02:08.3]} 20. Kd1 {[%clk 0:00:55.7]} 20... Bxe4 {[%clk 0:01:56.1]} 21. Qxe4
{[%clk 0:00:56.6]} 21... Qg5 {[%clk 0:01:53.8]} 22. Kc2 {[%clk 0:00:45.8]} 22...
Qxg2 {[%clk 0:01:47.6]} 23. Qxg2 {[%clk 0:00:27.6]} 23... Nxg2 {[%clk
0:01:49.5]} 24. Ne4 {[%clk 0:00:29.1]} 24... Rf4 {[%clk 0:01:49.6]} 25. Rg1
{[%clk 0:00:21.5]} 25... Rxe4 {[%clk 0:01:48.2]} 26. Rxg2 {[%clk 0:00:22.8]}
26... g6 {[%clk 0:01:49.8]} 27. Kd3 {[%clk 0:00:23.6]} 27... Rh4 {[%clk
0:01:48.4]} 28. f3 {[%clk 0:00:21.6]} 28... Rf4 {[%clk 0:01:44.9]} 29. Rg3
{[%clk 0:00:21.9]} 29... b5 {[%clk 0:01:44.3]} 30. cxb5 {[%clk 0:00:11.2]} 30...
Nxb4+ {[%clk 0:01:45]} 31. Bxb4 {[%clk 0:00:06.1]} 31... Rxb4 {[%clk 0:01:46.9]}
32. Rg2 {[%clk 0:00:05.1]} 32... Rxb5 {[%clk 0:01:47.7]} 33. Ke4 {[%clk
0:00:05.2]} 33... Rc5 {[%clk 0:01:45.8]} 34. Ra2 {[%clk 0:00:03.7]} 34... Kg7
{[%clk 0:01:46.8]} 35. Ra7 {[%clk 0:00:03.6]} 35... Kf6 {[%clk 0:01:47.8]} 36.
f4 {[%clk 0:00:03.5]} 36... Rc2 {[%clk 0:01:47.4]} 37. h3 {[%clk 0:00:04.1]}
37... h5 {[%clk 0:01:48.2]} 38. Rb7 {[%clk 0:00:04.2]} 38... h4 {[%clk
0:01:48.9]} 39. Ra7 {[%clk 0:00:05]} 39... Rc4+ {[%clk 0:01:49.8]} 40. Ke3
{[%clk 0:00:06]} 40... Kf5 {[%clk 0:01:50.9]} 41. Ra8 {[%clk 0:00:06.7]} 41...
Re4+ {[%clk 0:01:48.3]} 42. Kd3 {[%clk 0:00:06.2]} 42... Rxf4 {[%clk 0:01:49.6]}
43. Rc8 {[%clk 0:00:04.4]} 43... Ke5 {[%clk 0:01:48.5]} 44. Rxc7 {[%clk
0:00:05.5]} 44... Kxd5 {[%clk 0:01:47.7]} 45. Rg7 {[%clk 0:00:06.9]} 45... Rf3+
{[%clk 0:01:48.4]} 46. Ke2 {[%clk 0:00:08.2]} 46... Rg3 {[%clk 0:01:49.7]} 47.
Kf2 {[%clk 0:00:04.3]} 47... Kd4 {[%clk 0:01:50]} 48. Rh7 {[%clk 0:00:04.5]}
48... g5 {[%clk 0:01:50.3]} 49. Ra7 {[%clk 0:00:04.6]} 49... Rxh3 {[%clk
0:01:50]} 50. Ra4+ {[%clk 0:00:04]} 50... Ke5 {[%clk 0:01:51.1]} 51. Rg4 {[%clk
0:00:04.3]} 51... Rg3 {[%clk 0:01:50.1]} 0-1

[Event "*** Titled Tuesday Blitz"]
[Site "Chess.com"]
[Date "2019.11.05"]
[Round "6"]
[White "WinningButNotReally"]
[Black "Astaneh"]
[Result "1-0"]
[WhiteElo "2439"]
[BlackElo "2559"]
[TimeControl "180+2"]
[EndTime "14:21:12 PST"]
[Termination "WinningButNotReally won by resignation"]

1. Nf3 {[%clk 0:03:01.9]} 1... Nf6 {[%clk 0:02:50.2]} 2. g3 {[%clk 0:03:00.4]}
2... g6 {[%clk 0:02:48.7]} 3. Bg2 {[%clk 0:02:59.9]} 3... Bg7 {[%clk 0:02:50.6]}
4. O-O {[%clk 0:03:00.3]} 4... O-O {[%clk 0:02:52.5]} 5. c4 {[%clk 0:03:01.5]}
5... c6 {[%clk 0:02:53.8]} 6. d4 {[%clk 0:03:02.4]} 6... d5 {[%clk 0:02:55.7]}
7. Nc3 {[%clk 0:03:03.1]} 7... Ne4 {[%clk 0:02:50.6]} 8. cxd5 {[%clk 0:02:49.8]}
8... cxd5 {[%clk 0:02:51.4]} 9. Ne5 {[%clk 0:02:24.9]} 9... Nxc3 {[%clk
0:02:48.4]} 10. bxc3 {[%clk 0:02:26.4]} 10... Nc6 {[%clk 0:02:48.6]} 11. Nxc6
{[%clk 0:02:08]} 11... bxc6 {[%clk 0:02:48.8]} 12. Qa4 {[%clk 0:02:07.4]} 12...
Bd7 {[%clk 0:02:45.1]} 13. Qa3 {[%clk 0:02:03.4]} 13... e5 {[%clk 0:02:42.5]}
14. Be3 {[%clk 0:02:00.6]} 14... Re8 {[%clk 0:02:42.2]} 15. Rab1 {[%clk
0:01:54.6]} 15... Rb8 {[%clk 0:02:27.6]} 16. dxe5 {[%clk 0:01:42.7]} 16... Bxe5
{[%clk 0:02:25]} 17. Bxa7 {[%clk 0:01:43.1]} 17... Ra8 {[%clk 0:02:24.8]} 18.
Qc5 {[%clk 0:01:31.7]} 18... Bxc3 {[%clk 0:01:57]} 19. Rb7 {[%clk 0:01:20.3]}
19... Bg7 {[%clk 0:01:23.8]} 20. Bb6 {[%clk 0:00:59.4]} 20... Qe7 {[%clk
0:01:24.8]} 21. Qxe7 {[%clk 0:00:55.1]} 21... Rxe7 {[%clk 0:01:26.7]} 22. Bc5
{[%clk 0:00:56.5]} 22... Rxe2 {[%clk 0:01:18.3]} 23. Rxd7 {[%clk 0:00:57.2]}
23... Rexa2 {[%clk 0:01:17.8]} 24. Rc1 {[%clk 0:00:21.3]} 24... Ra1 {[%clk
0:01:11.5]} 25. Rxa1 {[%clk 0:00:22.1]} 25... Rxa1+ {[%clk 0:01:13.4]} 26. Bf1
{[%clk 0:00:23.4]} 26... h5 {[%clk 0:01:03.2]} 27. Kg2 {[%clk 0:00:24.7]} 27...
Rc1 {[%clk 0:01:02.3]} 28. Be3 {[%clk 0:00:25]} 28... Rc3 {[%clk 0:00:55.5]} 29.
Be2 {[%clk 0:00:25.6]} 29... Bf6 {[%clk 0:00:52.6]} 30. Bf3 {[%clk 0:00:22.9]}
30... h4 {[%clk 0:00:51.9]} 31. Rd6 {[%clk 0:00:23.5]} 31... Be5 {[%clk
0:00:45.4]} 32. Rd8+ {[%clk 0:00:24]} 32... Kg7 {[%clk 0:00:46.6]} 33. gxh4
{[%clk 0:00:24.2]} 33... Rd3 {[%clk 0:00:43.2]} 34. Be2 {[%clk 0:00:23.7]} 34...
Rc3 {[%clk 0:00:41.1]} 35. h5 {[%clk 0:00:24.9]} 35... gxh5 {[%clk 0:00:41.3]}
36. Bxh5 {[%clk 0:00:26.1]} 36... Bf6 {[%clk 0:00:42.7]} 37. Rd7 {[%clk
0:00:26.3]} 37... d4 {[%clk 0:00:31]} 38. Bxd4 {[%clk 0:00:24.9]} 38... Bxd4
{[%clk 0:00:31.2]} 39. Rxd4 {[%clk 0:00:25.5]} 39... Rc5 {[%clk 0:00:33.1]} 40.
Bf3 {[%clk 0:00:25.6]} 40... Rc1 {[%clk 0:00:30.9]} 41. Rd7 {[%clk 0:00:24.1]}
41... Kf8 {[%clk 0:00:29.9]} 42. Rc7 {[%clk 0:00:24.8]} 42... c5 {[%clk
0:00:31.1]} 43. Bd5 {[%clk 0:00:26.1]} 43... f6 {[%clk 0:00:32.6]} 44. Rf7+
{[%clk 0:00:27]} 44... Ke8 {[%clk 0:00:34.1]} 45. Rxf6 {[%clk 0:00:28.9]} 45...
Ke7 {[%clk 0:00:35.7]} 46. Rc6 {[%clk 0:00:29.7]} 46... Kd7 {[%clk 0:00:36.3]}
47. Bf3 {[%clk 0:00:30.8]} 47... c4 {[%clk 0:00:36.9]} 48. h4 {[%clk 0:00:31.9]}
48... c3 {[%clk 0:00:38.5]} 49. h5 {[%clk 0:00:33.2]} 1-0

[Event "*** Titled Tuesday Blitz"]
[Site "Chess.com"]
[Date "2019.11.05"]
[Round "6"]
[White "Zavgorodniy_Serg"]
[Black "Guenplen"]
[Result "0-1"]
[WhiteElo "2584"]
[BlackElo "2952"]
[TimeControl "180+2"]
[EndTime "14:21:18 PST"]
[Termination "Guenplen won by resignation"]

1. e4 {[%clk 0:03:01.9]} 1... c5 {[%clk 0:03:00.7]} 2. Nf3 {[%clk 0:03:02.1]}
2... Nc6 {[%clk 0:03:01.6]} 3. Bb5 {[%clk 0:03:02.4]} 3... e5 {[%clk 0:03:02.4]}
4. O-O {[%clk 0:02:58.9]} 4... Bd6 {[%clk 0:03:03.4]} 5. c3 {[%clk 0:02:58.6]}
5... a6 {[%clk 0:03:01.9]} 6. Bxc6 {[%clk 0:02:58.6]} 6... dxc6 {[%clk
0:03:03.8]} 7. d4 {[%clk 0:02:59.6]} 7... exd4 {[%clk 0:03:05.2]} 8. cxd4 {[%clk
0:03:01]} 8... Bg4 {[%clk 0:03:06.8]} 9. dxc5 {[%clk 0:02:57.9]} 9... Bxc5
{[%clk 0:03:02.8]} 10. Qc2 {[%clk 0:02:46.2]} 10... Ba7 {[%clk 0:02:53.8]} 11.
Ne5 {[%clk 0:02:38]} 11... Bh5 {[%clk 0:02:48.4]} 12. Nc4 {[%clk 0:02:38.1]}
12... Ne7 {[%clk 0:02:40.2]} 13. Be3 {[%clk 0:02:26.6]} 13... Bxe3 {[%clk
0:02:39.5]} 14. Nxe3 {[%clk 0:02:28.5]} 14... O-O {[%clk 0:02:40.3]} 15. Nd2
{[%clk 0:02:26.5]} 15... Qb6 {[%clk 0:02:23.5]} 16. Nb3 {[%clk 0:02:23.1]} 16...
Rfd8 {[%clk 0:02:17.4]} 17. Nc5 {[%clk 0:02:19]} 17... Rd4 {[%clk 0:02:08]} 18.
f3 {[%clk 0:01:53.8]} 18... Rad8 {[%clk 0:02:04.9]} 19. Rad1 {[%clk 0:01:52.5]}
19... f6 {[%clk 0:01:24.3]} 20. Rxd4 {[%clk 0:01:42.6]} 20... Rxd4 {[%clk
0:01:24.8]} 21. Rd1 {[%clk 0:01:43.7]} 21... Rxd1+ {[%clk 0:01:24.5]} 22. Nxd1
{[%clk 0:01:45.6]} 22... Bf7 {[%clk 0:01:24.2]} 23. b3 {[%clk 0:01:46.2]} 23...
Qa5 {[%clk 0:01:14.6]} 24. Kf2 {[%clk 0:01:45.4]} 24... b6 {[%clk 0:01:10.2]}
25. Nd3 {[%clk 0:01:41.8]} 25... Qh5 {[%clk 0:01:08.9]} 26. h3 {[%clk
0:01:31.3]} 26... Qh4+ {[%clk 0:01:00.7]} 27. Kf1 {[%clk 0:01:30.4]} 27... Qg5
{[%clk 0:01:00.4]} 28. Kf2 {[%clk 0:01:18.6]} 28... Qh4+ {[%clk 0:01:00.3]} 29.
Kf1 {[%clk 0:01:19.2]} 29... Qg5 {[%clk 0:01:01.6]} 30. Kf2 {[%clk 0:01:20.3]}
30... a5 {[%clk 0:01:02.3]} 31. Ne3 {[%clk 0:01:19]} 31... h5 {[%clk 0:00:48.6]}
32. g3 {[%clk 0:01:14.4]} 32... h4 {[%clk 0:00:47.3]} 33. g4 {[%clk 0:01:15.5]}
33... Qb5 {[%clk 0:00:43]} 34. f4 {[%clk 0:01:09.3]} 34... c5 {[%clk 0:00:38.8]}
35. Nf5 {[%clk 0:01:01.1]} 35... Nxf5 {[%clk 0:00:36.4]} 36. gxf5 {[%clk
0:01:01.1]} 36... c4 {[%clk 0:00:37.9]} 37. bxc4 {[%clk 0:01:01.9]} 37... Qxc4
{[%clk 0:00:37.3]} 38. Qxc4 {[%clk 0:00:42.4]} 38... Bxc4 {[%clk 0:00:39.2]} 39.
Nc1 {[%clk 0:00:38.4]} 39... b5 {[%clk 0:00:40.4]} 40. a3 {[%clk 0:00:38.4]}
40... b4 {[%clk 0:00:35.4]} 41. axb4 {[%clk 0:00:38.6]} 41... axb4 {[%clk
0:00:37.3]} 42. Ne2 {[%clk 0:00:33.1]} 42... b3 {[%clk 0:00:32]} 43. Nc3 {[%clk
0:00:32]} 43... b2 {[%clk 0:00:33]} 44. Kf3 {[%clk 0:00:31.1]} 44... Bd3 {[%clk
0:00:32.8]} 0-1